Workbook

Sheet Instructions
B2: Welcome to the Adequate Refuse Space Calculator!
B3: This tool provides planning-level estimates for the quantity of trash, recycling, and composting waste generated within a given building. The user inputs detailed information regarding the project size, estimated occupancy, and sector(s), and the resulting outputs include a waste generation estimate, recommended service profiles (container type, size, and collection frequency), and estimates for the amount of space that will need to be allocated for waste containers in the building design phase. This calculator is intended to complement the Adequate Refuse Space Design Guidelines that can be found here (link to document on DBI website).
B11: Disclaimer: This Design Guide and the accompanying calculator and tools are provided for your convenience only. It is impossible to anticipate each project’s unique characteristics and therefore this document is intended only as a guideline and not specific advice for your project. While we take every care to ensure the accuracy of the information in this Design Guide, we do not accept responsibility for any inadvertent inaccuracies. Under no circumstances shall Recology, Cascadia Consulting Group, Inc., or SF Environment be liable for any actions taken or omissions made from reliance on any information contained herein from whatever source nor shall Recology, Cascadia Consulting Group, Inc., or SF Environment be liable for any other consequences from any such reliance.
B21: In order to use this tool, please read the instructions below and then click the gray button to begin:
B22: Note: Only the white cells on the INPUT tab should be modified by the user. All other cells calculate automatically based on user inputs.
C23: 1) Enter the Project Name
C24: 2) Enter the following user info:
D25: a) User Name
D26: b) Company/Organization
D27: c) Phone Number
D28: d) Email Address
C29: 3) Enter the following Project Specifications:
D30: a) Address
D31: b) Number of Floors
D32: c) Expected Occupancy
D33: d) Square Footage
D34: e) Days of Operation/Week (if the building includes multifamily, default to 7 days per week)
D35: f) Notes (note any building plans or operational considerations that may impact waste generation, e.g., "all foodservice areas will use a food waste dehydrator")
C37: 4) Enter the project sector(s) using the drop-down menus to select from the following options:
D38: a) Multifamily
D39: b) Office
D40: c) Restaurant (sit-down)
C41: 5) Enter the percentage of the building's square footage that will be dedicated to each sector using the dropdown menus.
C42: Note: round to the nearest 5%. If the project only includes one sector, enter 100% for that sector.
C43: 6) Enter the percentage of the building's expected occupants that will be dedicated to each sector using the dropdown menus.
C44: Note: round to the nearest 5%. If the project only includes one sector, enter 100% for that sector.
C45: 7) If the building includes multifamily as one of its sectors, enter the number of units that are included.
B47: After the above information has been inputted, the remaining tables in the calculator will automatically populate. The following information will be calculated:
C48: 1) Estimated Generation(weekly of trash, recycling, and composting that will be generated by each sector and the building overall.
C49: 2) Recommended service profile - the type of container, container size, and weekly collection frequency necessary to collect the building's waste.
C50: 3) Recommended space allocation - estimates for the amount of space needed for each container and additional operational design consideration regarding collection and servicing access.

Sheet Input
C3: Project Name
C5: User
C7: Organization
C9: Phone Number
C11: Email Address
C13: Project Specifications
C14: Address
C16: Number of floors
C18: Expected occupancy | G18: =IF(ISNUMBER(E18),"","Please Enter a valid number") -> Please Enter a valid number
C20: Square footage
C22: Days of operation/week
C26: Will the waste collection room be below grade? | F26: No
C27: =IF(F26="No","","For below-grade collection rooms in multifamily properties or mixed-use developments <50,000 sq. ft., please contact Recology at (415) 575-2413") -> 
C30: Notes
C37: Sector (select up to four) | E37: Percentage (based on square footage)
B38: 1 | C38: Multifamily | E38: 0.01
B39: 2 | C39: Office | E39: 0.93
B40: 3 | C40: (select from dropdown) | E40: (select from dropdown)
B41: 4 | C41: (select from dropdown) | E41: (select from dropdown)
C42: Total | E42: =SUM(E38:F41) -> 0.94
E43: =IF(E42=1,"","Error - values must add to 100%") -> Error - values must add to 100%
C44: If commercial is included, is there private on-site foodservice? | H44: Yes
C46: If multifamily is included, how many units are planned? | H46: 200 | J46: =IF(ISNUMBER(H46),"","Please Enter a valid number") -> 
C49: Estimated Generation (weekly) Uncompacted | E49: =+Key!B50 -> Trash | F49: =+Key!C50 -> Recycling | G49: =+Key!D50 -> Composting | H49: Total
E50: Cubic Yards | F50: Cubic Yards | G50: Cubic Yards | H50: Cubic Yards
B51: 1 | C51: =IF(ISBLANK(C38),"",C38) -> Multifamily | E51: =IFERROR(ROUND(INDEX(Capacity_Lookup,MATCH(Input!$C51,Key!$A$50:$A$53,0),MATCH(Input!E$49,Key!$A$50:$E$50,0)),3)*$E38*IF($C51=Key!$A$7,$H$46,$E$20/1000),"") -> 0.272 | F51: =IFERROR(ROUND(INDEX(Capacity_Lookup,MATCH(Input!$C51,Key!$A$50:$A$53,0),MATCH(Input!F$49,Key!$A$50:$E$50,0)),3)*$E38*IF($C51=Key!$A$7,$H$46,$E$20/1000),"") -> 0.278 | G51: =IFERROR(ROUND(INDEX(Capacity_Lookup,MATCH(Input!$C51,Key!$A$50:$A$53,0),MATCH(Input!G$49,Key!$A$50:$E$50,0)),3)*$E38*IF($C51=Key!$A$7,$H$46,$E$20/1000),"") -> 0.078 | H51: =SUM(E51,F51,G51) -> 0.628
B52: 2 | C52: =IF(ISBLANK(C39),"",C39) -> Office | E52: =IFERROR(ROUND(INDEX(Capacity_Lookup,MATCH(Input!$C52,Key!$A$50:$A$53,0),MATCH(Input!E$49,Key!$A$50:$E$50,0)),3)*$E39*IF($C52=Key!$A$7,$H$46,$E$20/1000),"") -> 0 | F52: =IFERROR(ROUND(INDEX(Capacity_Lookup,MATCH(Input!$C52,Key!$A$50:$A$53,0),MATCH(Input!F$49,Key!$A$50:$E$50,0)),3)*$E39*IF($C52=Key!$A$7,$H$46,$E$20/1000),"") -> 0 | G52: =IFERROR(ROUND(INDEX(Capacity_Lookup,MATCH(Input!$C52,Key!$A$50:$A$53,0),MATCH(Input!G$49,Key!$A$50:$E$50,0)),3)*$E39*IF($C52=Key!$A$7,$H$46,$E$20/1000),"") -> 0 | H52: =SUM(E52,F52,G52) -> 0
B53: 3 | C53: =IF(ISBLANK(C40),"",C40) -> (select from dropdown) | E53: =IFERROR(ROUND(INDEX(Capacity_Lookup,MATCH(Input!$C53,Key!$A$50:$A$53,0),MATCH(Input!E$49,Key!$A$50:$E$50,0)),3)*$E40*IF($C53=Key!$A$7,$H$46,$E$20/1000),"") ->  | F53: =IFERROR(ROUND(INDEX(Capacity_Lookup,MATCH(Input!$C53,Key!$A$50:$A$53,0),MATCH(Input!F$49,Key!$A$50:$E$50,0)),3)*$E40*IF($C53=Key!$A$7,$H$46,$E$20/1000),"") ->  | G53: =IFERROR(ROUND(INDEX(Capacity_Lookup,MATCH(Input!$C53,Key!$A$50:$A$53,0),MATCH(Input!G$49,Key!$A$50:$E$50,0)),3)*$E40*IF($C53=Key!$A$7,$H$46,$E$20/1000),"") ->  | H53: =SUM(E53,F53,G53) -> 0
B54: 4 | C54: =IF(ISBLANK(C41),"",C41) -> (select from dropdown) | E54: =IFERROR(ROUND(INDEX(Key!#REF!,MATCH(Input!$C54,Key!#REF!,0),MATCH(Input!E$49,Key!#REF!,0))/1000*$E$20,3)*$E41,"") ->  | F54: =IFERROR(ROUND(INDEX(Key!#REF!,MATCH(Input!$C54,Key!#REF!,0),MATCH(Input!F$49,Key!#REF!,0))/1000*$E$20,3)*$E41,"") ->  | G54: =IFERROR(ROUND(INDEX(Key!#REF!,MATCH(Input!$C54,Key!#REF!,0),MATCH(Input!G$49,Key!#REF!,0))/1000*$E$20,3)*$E41,"") ->  | H54: =SUM(E54,F54,G54) -> 0
C55: Total | E55: =SUM(E51:E54) -> 0.272 | F55: =SUM(F51:F54) -> 0.278 | G55: =SUM(G51:G54) -> 0.078 | H55: =SUM(H51:H54) -> 0.628
C57: Recommended Service Profile
C59: Trash | D59: Container type | F59: Qty | G59: Container Size | I59: Collection Frequency | K59: Total Capacity
D60: =IFERROR(VLOOKUP($E$55,'Service Recommendation'!$A:$M,'Service Recommendation'!$D$1,1),"") -> Container | F60: 1 | G60: =IFERROR(VLOOKUP($E$55,'Service Recommendation'!$A:$M,'Service Recommendation'!$B$1,1),"") -> 1 | I60: =IF(E55>110,ROUNDUP(E55/(G60*3),0)&"x",IFERROR(VLOOKUP($E$55,'Service Recommendation'!$A:$M,'Service Recommendation'!$E$1,1)&"x","")) -> 1x | J60: per week | K60: =IFERROR(IF(D60="Compactor",F60*G60*LEFT(I60,FIND("x",I60)-1)*3,F60*G60*LEFT(I60,1)),"") -> 1
C62: Recycling | D62: Container type | F62: Qty | G62: Container Size | I62: Collection Frequency | K62: Total Capacity
D63: =IFERROR(VLOOKUP($F$55,'Service Recommendation'!$A:$M,'Service Recommendation'!$H$1,1),"") -> Container | F63: 1 | G63: =IFERROR(VLOOKUP($F$55,'Service Recommendation'!$A:$M,'Service Recommendation'!$F$1,1),"") -> 1 | I63: =IF(F55>110,ROUNDUP(F55/(G63*3),0)&"x",IFERROR(VLOOKUP($F$55,'Service Recommendation'!$A:$M,'Service Recommendation'!$I$1,1)&"x","")) -> 1x | J63: per week | K63: =IFERROR(IF(D63="Compactor",F63*G63*LEFT(I63,FIND("x",I63)-1)*3,F63*G63*LEFT(I63,1)),"") -> 1
C65: Composting | D65: Container type | F65: Qty | G65: Container Size | I65: Collection Frequency | K65: Total Capacity
D66: =IFERROR(VLOOKUP($G$55,'Service Recommendation'!$A:$M,'Service Recommendation'!$L$1,1),"") -> Container | F66: 1 | G66: =IFERROR(VLOOKUP($G$55,'Service Recommendation'!$A:$M,'Service Recommendation'!$J$1,1),"") -> 1 | I66: =IF(G55>110,ROUNDUP(G55/(G66*3),0)&"x",IFERROR(VLOOKUP($G$55,'Service Recommendation'!$A:$M,'Service Recommendation'!$M$1,1)&"x","")) -> 1x | J66: per week | K66: =IFERROR(IF(D66="Compactor",F66*G66*LEFT(I66,FIND("x",I66)-1)*3,F66*G66*LEFT(I66,1)),"") -> 1
C69: Recommended Space Allocation
C70: Total
C71: Total Space Needs | F71: Space for Container(s) | I71: Operational Space
C72: Number of Containers | D72: =SUM(D81,D87,D93,) -> 3 | F72: Square feet | G72: =SUM(G79+G85+G91) -> 175.5 | I72: Entrance width | K72: 12.5 ft
F73: length | G73: =G80+G86+G92 -> 40.5 | H73: ft | I73: Minimum overhead clearance | K73: 23 ft
F74: width | G74: =MAX(G81,G87,G93) -> 4.333333333 | H74: ft | I74: Servicing length | K74: =+Key!B48 -> 66 ft
F75: height | G75: =MAX(G82,G88,G94) -> 4.75 | H75: ft | I75: Turning radius | K75: 36.5 ft
C77: By Stream
C78: Trash | F78: Space for Container(s)
C79: Type | D79: =D60 -> Container | F79: Square feet | G79: =G80*G81 -> 58.5
C80: Container Size | D80: =G60 -> 1 | E80: yds | F80: length | G80: =INDEX('Space Requirements'!$R$8:$R$20,MATCH(Input!G60,'Space Requirements'!$E$8:$E$20,0)) -> 13.5 | H80: ft
C81: Quantity | D81: =F60 -> 1 | F81: width | G81: =INDEX('Space Requirements'!$T$8:$T$20,MATCH(Input!G60,'Space Requirements'!$E$8:$E$20,0)) -> 4.333333333 | H81: ft
F82: height | G82: =INDEX('Space Requirements'!$V$8:$V$20,MATCH(Input!G60,'Space Requirements'!$E$8:$E$20,0)) -> 4.75 | H82: ft
C84: Recycling | F84: Space for Container(s)
C85: Type | D85: =D63 -> Container | F85: Square feet | G85: =G86*G87 -> 58.5
C86: Container Size | D86: =G63 -> 1 | E86: yds | F86: length | G86: =INDEX('Space Requirements'!$R$8:$R$20,MATCH(Input!G63,'Space Requirements'!$E$8:$E$20,0)) -> 13.5 | H86: ft
C87: Quantity | D87: =F63 -> 1 | F87: width | G87: =INDEX('Space Requirements'!$T$8:$T$20,MATCH(Input!G63,'Space Requirements'!$E$8:$E$20,0)) -> 4.333333333 | H87: ft
F88: height | G88: =INDEX('Space Requirements'!$V$8:$V$20,MATCH(Input!G63,'Space Requirements'!$E$8:$E$20,0)) -> 4.75 | H88: ft
C90: Composting | F90: Space for Container(s)
C91: Type | D91: =D66 -> Container | F91: Square feet | G91: =G92*G93 -> 58.5
C92: Container Size | D92: =G66 -> 1 | E92: yds | F92: length | G92: =INDEX('Space Requirements'!$R$8:$R$20,MATCH(Input!$G$66,'Space Requirements'!$E$8:$E$20,0)) -> 13.5 | H92: ft
C93: Quantity | D93: =F66 -> 1 | F93: width | G93: =INDEX('Space Requirements'!$T$8:$T$20,MATCH(Input!$G$66,'Space Requirements'!$E$8:$E$20,0)) -> 4.333333333 | H93: ft
F94: height | G94: =INDEX('Space Requirements'!$V$8:$V$20,MATCH(Input!$G$66,'Space Requirements'!$E$8:$E$20,0)) -> 4.75 | H94: ft

Sheet Key (hidden)
A1: Key References/Assumptions
A4: Dropdown Menus
A5: Sector | B5: Percentages | C5: (select from dropdown) | D5: Days Per Week
A6: (select from dropdown) | B6: (select from dropdown) | C6: Yes | D6: 1
A7: Multifamily | B7: 0 | C7: No | D7: 2
A8: Office | B8: 0.01 | D8: 3
A9: Restaurant (sit-down) | B9: 0.02 | D9: 4
B10: 0.03 | D10: 5
B11: 0.04 | D11: 6
B12: 0.05 | D12: 7
B13: 0.06
B14: 0.07
B15: 0.08
B16: 0.09
B17: 0.1
B18: 0.15
B19: 0.2
B20: 0.25
B21: 0.3
B22: 0.35
B23: 0.4
B24: 0.45
B25: 0.5
B26: 0.55
B27: 0.6
B28: 0.65
B29: 0.7
B30: 0.75
B31: 0.8
B32: 0.85
B33: 0.9
B34: 0.91
B35: 0.92
B36: 0.93
B37: 0.94
B38: 0.95
B39: 0.96
B40: 0.97
B41: 0.98
B42: 0.99
B43: 1
A48: Minimum servicing length | B48: 66 ft
B50: Trash | C50: Recycling | D50: Composting | E50: Total
A51: Office | B51: 0.0594 | C51: 0.1441 | D51: 0.0528 | E51: 0.256073903 | F51: Per 1000 Square Foot
A52: Multifamily | B52: 0.136 | C52: 0.139 | D52: 0.0394 | E52: 0.3146296296 | F52: Per Unit
A53: Restaurant (sit-down) | B53: 0.36 | C53: 0.46 | D53: 0.43 | E53: 1.26 | F53: Per 1000 Square Foot

Sheet Space Requirements (hidden)
J5: Container profile | P5: Profiles with buffer | W5: Pounds per week | AD5: RECOLOGY NOTES
J6: length | L6: width | N6: height | Q6: length | S6: width | U6: height | W6: Landfill | Y6: Recycling | AA6: Composting
C7: Container Name | D7: Type | E7: Size | F7: Unit | G7: Stream 1 | H7: Stream 2 | I7: Stream 3 | J7: inches | K7: feet | L7: inches | M7: feet | N7: inches | O7: feet | P7: buffer (inches) | Q7: inches | R7: feet | S7: inches | T7: feet | U7: inches | V7: feet | W7: min | X7: max | Y7: min | Z7: max | AA7: min | AB7: max | AD7: max wt
A8: 0.01 | B8: 1 | C8: 1 yd | D8: container | E8: 1 | F8: yd | G8: Landfill | H8: Recycling | I8: Compost | J8: 82 | K8: 6.833333333 | L8: 28 | M8: 2.333333333 | N8: 39 | O8: 3.25 | P8: 80 | Q8: =J8+P8 -> 162 | R8: =Q8/12 -> 13.5 | S8: =L8+24 -> 52 | T8: =S8/12 -> 4.333333333 | U8: 57 | V8: 4.75 | W8: 0.1 | X8: 102.35 | Y8: 0.1 | Z8: 75.45 | AA8: 0.1 | AB8: 185.45 | AC8: 1 | AD8: =+X8/AC8 -> 102.35
A9: 1 | B9: 2 | C9: 2 yd | D9: container | E9: 2 | F9: yd | G9: Landfill | H9: Recycling | I9: Compost | J9: 82 | K9: 6.833333333 | L9: 42 | M9: 3.5 | N9: 47 | O9: 3.916666667 | P9: 80 | Q9: =J9+P9 -> 162 | R9: =Q9/12 -> 13.5 | S9: =L9+24 -> 66 | T9: =S9/12 -> 5.5 | U9: 65 | V9: 5.416666667 | W9: 102.45 | X9: 204.7 | Y9: 75.55 | Z9: 150.9 | AA9: 185.55 | AB9: 370.9 | AC9: 2
A10: 2 | B10: 3 | C10: 3 yd | D10: container | E10: 3 | F10: yd | G10: Landfill | H10: Recycling | I10: Compost | J10: 82 | K10: 6.833333333 | L10: 44 | M10: 3.666666667 | N10: 61 | O10: 5.083333333 | P10: 80 | Q10: 162 | R10: 13.5 | S10: 68 | T10: 5.666666667 | U10: 79 | V10: 6.583333333 | W10: 204.8 | X10: 307.05 | Y10: 151 | Z10: 226.35 | AA10: 371 | AB10: 556.35 | AC10: 3
A11: 3 | B11: 4 | C11: 4 yd | D11: container | E11: 4 | F11: yd | G11: Landfill | H11: Recycling | I11: Compost | J11: 82 | K11: 6.833333333 | L11: 53 | M11: 4.416666667 | N11: 66 | O11: 5.5 | P11: 80 | Q11: 162 | R11: 13.5 | S11: 77 | T11: 6.416666667 | U11: 84 | V11: 7 | W11: 307.15 | X11: 409.4 | Y11: 226.45 | Z11: 301.8 | AA11: 556.45 | AB11: 650 | AC11: 4
A12: 4.5 | B12: 2 | C12: 2 yd | D12: compactor | E12: 2 | F12: yd | G12: Landfill | H12: Recycling | I12: Compost | J12: 123 | K12: 10.25 | L12: 48 | M12: 4 | N12: 75 | O12: 6.3 | P12: 80 | Q12: 203 | R12: 16.91666667 | S12: 72 | T12: 6 | U12: 91 | V12: 7.583333333 | W12: 410 | X12: 800 | Y12: 301.9 | Z12: 800 | AA12: 650.1 | AB12: 800 | AC12: =2*3 -> 6
A13: 6.5 | B13: 3 | C13: 3 yd | D13: compactor | E13: 3 | F13: yd | G13: Landfill | H13: Recycling | I13: Compost | J13: 123 | K13: 10.25 | L13: 48 | M13: 4 | N13: 75 | O13: 6.3 | P13: 80 | Q13: 203 | R13: 16.91666667 | S13: 72 | T13: 6 | U13: 91 | V13: 7.583333333 | W13: 800.1 | X13: 1600 | Y13: 800.1 | Z13: 1600 | AA13: 800.1 | AB13: 1600 | AC13: =3*3 -> 9
A14: 9.5 | B14: 4 | C14: 4 yd | D14: compactor | E14: 4 | F14: yd | G14: Landfill | H14: Recycling | I14: Compost | J14: 123 | K14: 10.25 | L14: 48 | M14: 4 | N14: 75 | O14: 6.3 | P14: 80 | Q14: 203 | R14: 16.91666667 | S14: 72 | T14: 6 | U14: 91 | V14: 7.583333333 | W14: 1600.1 | X14: 2000 | Y14: 1600.1 | Z14: 2000 | AA14: 1600.1 | AB14: 2000 | AC14: =4*3 -> 12
A15: 12.5 | B15: 10 | C15: 10 yd compactor | D15: compactor | E15: 10 | F15: yd | G15: Landfill | H15: Recycling | I15: Compost | J15: 158 | K15: 13.16666667 | L15: 100 | M15: 8.1 | N15: 87 | O15: 7.3 | P15: 530 | Q15: 688 | R15: 57.33333333 | S15: 148 | T15: 12.33333333 | U15: 105 | V15: 8.75 | W15: 2000.1 | X15: 3500 | Y15: 2000.1 | Z15: 3500 | AA15: 2000.1 | AB15: 3500 | AC15: =10*3 -> 30
B16: 15 | C16: 15 yd compactor | D16: compactor | E16: 15 | F16: yd | G16: Landfill | H16: Recycling | I16: Compost | J16: 182 | K16: 15.2 | L16: 100 | M16: 8.3 | N16: 110 | O16: 8.5 | P16: 530 | Q16: 712 | R16: 59.33333333 | S16: 148 | T16: 12.33333333 | U16: 105 | V16: 8.8 | AC16: 45
A17: 31.5 | B17: 20 | C17: 20 yd compactor | D17: compactor | E17: 20 | F17: yd | G17: Landfill | H17: Recycling | I17: Compost | J17: 208 | K17: 17.3 | L17: 100 | M17: 8.3 | N17: 110 | O17: 8.5 | P17: 530 | Q17: 738 | R17: 61.5 | S17: 148 | T17: 12.33333333 | U17: 105 | V17: 8.75 | W17: 3500.1 | X17: 7000 | Y17: 3500.1 | Z17: 7000 | AA17: 3500.1 | AB17: 7000 | AC17: =20*3 -> 60
B18: 25 | C18: 25 yd compactor | D18: compactor | E18: 25 | F18: yd | G18: Landfill | H18: Recycling | I18: Compost | J18: 239 | K18: 19.9 | L18: 100 | M18: 8.3 | N18: 110 | O18: 8.5 | P18: 530 | Q18: 769 | R18: 64.08333333 | S18: 148 | T18: 12.33333333 | U18: 105 | V18: 8.8 | AC18: 75
A19: 61.5 | B19: 30 | C19: 30 yd compactor | D19: compactor | E19: 30 | F19: yd | G19: Landfill | H19: Recycling | J19: 265 | K19: 22.1 | L19: 100 | M19: 8.3 | N19: 110 | O19: 8.5 | P19: 530 | Q19: 795 | R19: 66.25 | S19: 148 | T19: 12.33333333 | U19: 136 | V19: 11.33333333 | W19: 7000.1 | X19: 12000 | Y19: 7000.1 | Z19: 12000 | AA19: N/A | AB19: N/A | AC19: =30*3 -> 90
A20: 91.5 | B20: 34 | C20: 34 yd compactor | D20: compactor | E20: 34 | F20: yd | G20: Landfill | H20: Recycling | J20: 285 | K20: 23.75 | L20: 100 | M20: 8.3 | N20: 110 | O20: 8.5 | P20: 530 | Q20: 815 | R20: 67.91666667 | S20: 148 | T20: 12.33333333 | U20: 136 | V20: 11.33333333 | W20: N/A | X20: N/A | Y20: 12000.1 | Z20: 16000 | AA20: N/A | AB20: N/A | AC20: =34*3 -> 102

Sheet Service Recommendation (hidden)
A1: 1 | B1: =+A1+1 -> 2 | C1: =+B1+1 -> 3 | D1: 4 | E1: 5 | F1: 6 | G1: 7 | H1: 8 | I1: 9 | J1: 10 | K1: 11 | L1: 12 | M1: 13
B3: Trash | F3: Recycling | J3: Recycling
A4: Uncompacted Yards | B4: Size | D4: Type | E4: Times Per Week | F4: Size | H4: Type | I4: Times Per Week | J4: Size | L4: Type | M4: Times Per Week
A5: 0 | B5: 1 | C5: yd | D5: Container | E5: 1 | F5: 1 | G5: yd | H5: Container | I5: 1 | J5: 1 | K5: yd | L5: Container | M5: 1
A6: =+A5+1 -> 1 | B6: 1 | C6: yd | D6: Container | E6: 1 | F6: 1 | G6: yd | H6: Container | I6: 1 | J6: 1 | K6: yd | L6: Container | M6: 1
A7: 2 | B7: 2 | C7: yd | D7: Container | E7: 1 | F7: 2 | G7: yd | H7: Container | I7: 1 | J7: 2 | K7: yd | L7: Container | M7: 1
A8: 3 | B8: 3 | C8: yd | D8: Container | E8: 1 | F8: 3 | G8: yd | H8: Container | I8: 1 | J8: 3 | K8: yd | L8: Container | M8: 1
A9: 4 | B9: 4 | C9: yd | D9: Container | E9: 1 | F9: 4 | G9: yd | H9: Container | I9: 1 | J9: 4 | K9: yd | L9: Container | M9: 1
A10: 5 | B10: 2 | C10: yd | D10: Compactor | E10: 1 | F10: 2 | G10: yd | H10: Compactor | I10: 1 | J10: 2 | K10: yd | L10: Compactor | M10: 1
A11: 6 | B11: 2 | C11: yd | D11: Compactor | E11: 1 | F11: 2 | G11: yd | H11: Compactor | I11: 1 | J11: 2 | K11: yd | L11: Compactor | M11: 1
A12: 7 | B12: 2 | C12: yd | D12: Compactor | E12: 1 | F12: 2 | G12: yd | H12: Compactor | I12: 1 | J12: 2 | K12: yd | L12: Compactor | M12: 1
A13: 8 | B13: 3 | C13: yd | D13: Compactor | E13: 1 | F13: 3 | G13: yd | H13: Compactor | I13: 1 | J13: 3 | K13: yd | L13: Compactor | M13: 1
A14: 9 | B14: 3 | C14: yd | D14: Compactor | E14: 1 | F14: 3 | G14: yd | H14: Compactor | I14: 1 | J14: 3 | K14: yd | L14: Compactor | M14: 1
A15: 10 | B15: 3 | C15: yd | D15: Compactor | E15: 1 | F15: 3 | G15: yd | H15: Compactor | I15: 1 | J15: 3 | K15: yd | L15: Compactor | M15: 1
A16: 11 | B16: 3 | C16: yd | D16: Compactor | E16: 1 | F16: 3 | G16: yd | H16: Compactor | I16: 1 | J16: 3 | K16: yd | L16: Compactor | M16: 1
A17: 12 | B17: 4 | C17: yd | D17: Compactor | E17: 1 | F17: 4 | G17: yd | H17: Compactor | I17: 1 | J17: 4 | K17: yd | L17: Compactor | M17: 1
A18: 13 | B18: 2 | C18: yd | D18: Compactor | E18: 2 | F18: 2 | G18: yd | H18: Compactor | I18: 2 | J18: 2 | K18: yd | L18: Compactor | M18: 2
A19: 14 | B19: 3 | C19: yd | D19: Compactor | E19: 2 | F19: 3 | G19: yd | H19: Compactor | I19: 2 | J19: 3 | K19: yd | L19: Compactor | M19: 2
A20: 15 | B20: 3 | C20: yd | D20: Compactor | E20: 2 | F20: 3 | G20: yd | H20: Compactor | I20: 2 | J20: 3 | K20: yd | L20: Compactor | M20: 2
A21: 16 | B21: 3 | C21: yd | D21: Compactor | E21: 2 | F21: 3 | G21: yd | H21: Compactor | I21: 2 | J21: 3 | K21: yd | L21: Compactor | M21: 2
A22: 17 | B22: 3 | C22: yd | D22: Compactor | E22: 2 | F22: 3 | G22: yd | H22: Compactor | I22: 2 | J22: 3 | K22: yd | L22: Compactor | M22: 2
A23: 18 | B23: 3 | C23: yd | D23: Compactor | E23: 2 | F23: 3 | G23: yd | H23: Compactor | I23: 2 | J23: 3 | K23: yd | L23: Compactor | M23: 2
A24: 19 | B24: 3 | C24: yd | D24: Compactor | E24: 2 | F24: 3 | G24: yd | H24: Compactor | I24: 2 | J24: 3 | K24: yd | L24: Compactor | M24: 2
A25: 20 | B25: 4 | C25: yd | D25: Compactor | E25: 2 | F25: 4 | G25: yd | H25: Compactor | I25: 2 | J25: 4 | K25: yd | L25: Compactor | M25: 2
A26: 21 | B26: 4 | C26: yd | D26: Compactor | E26: 2 | F26: 4 | G26: yd | H26: Compactor | I26: 2 | J26: 4 | K26: yd | L26: Compactor | M26: 2
A27: 22 | B27: 4 | C27: yd | D27: Compactor | E27: 2 | F27: 4 | G27: yd | H27: Compactor | I27: 2 | J27: 4 | K27: yd | L27: Compactor | M27: 2
A28: 23 | B28: 4 | C28: yd | D28: Compactor | E28: 2 | F28: 4 | G28: yd | H28: Compactor | I28: 2 | J28: 4 | K28: yd | L28: Compactor | M28: 2
A29: 24 | B29: 4 | C29: yd | D29: Compactor | E29: 2 | F29: 4 | G29: yd | H29: Compactor | I29: 2 | J29: 4 | K29: yd | L29: Compactor | M29: 2
A30: 25 | B30: 4 | C30: yd | D30: Compactor | E30: 2 | F30: 4 | G30: yd | H30: Compactor | I30: 2 | J30: 4 | K30: yd | L30: Compactor | M30: 2
A31: 26 | B31: 3 | C31: yd | D31: Compactor | E31: 3 | F31: 3 | G31: yd | H31: Compactor | I31: 3 | J31: 3 | K31: yd | L31: Compactor | M31: 3
A32: 27 | B32: 3 | C32: yd | D32: Compactor | E32: 3 | F32: 3 | G32: yd | H32: Compactor | I32: 3 | J32: 3 | K32: yd | L32: Compactor | M32: 3
A33: 28 | B33: 10 | C33: yd | D33: Compactor | E33: 1 | F33: 10 | G33: yd | H33: Compactor | I33: 1 | J33: 10 | K33: yd | L33: Compactor | M33: 1
A34: 29 | B34: 10 | C34: yd | D34: Compactor | E34: 1 | F34: 10 | G34: yd | H34: Compactor | I34: 1 | J34: 10 | K34: yd | L34: Compactor | M34: 1
A35: 30 | B35: 10 | C35: yd | D35: Compactor | E35: 1 | F35: 10 | G35: yd | H35: Compactor | I35: 1 | J35: 10 | K35: yd | L35: Compactor | M35: 1
A36: 31 | B36: 10 | C36: yd | D36: Compactor | E36: 1 | F36: 10 | G36: yd | H36: Compactor | I36: 1 | J36: 10 | K36: yd | L36: Compactor | M36: 1
A37: 32 | B37: 10 | C37: yd | D37: Compactor | E37: 1 | F37: 10 | G37: yd | H37: Compactor | I37: 1 | J37: 10 | K37: yd | L37: Compactor | M37: 1
A38: =+A37+1 -> 33 | B38: 15 | C38: yd | D38: Compactor | E38: 1 | F38: 15 | G38: yd | H38: Compactor | I38: 1 | J38: 15 | K38: yd | L38: Compactor | M38: 1
A39: 34 | B39: 15 | C39: yd | D39: Compactor | E39: 1 | F39: 15 | G39: yd | H39: Compactor | I39: 1 | J39: 15 | K39: yd | L39: Compactor | M39: 1
A40: 35 | B40: 15 | C40: yd | D40: Compactor | E40: 1 | F40: 15 | G40: yd | H40: Compactor | I40: 1 | J40: 15 | K40: yd | L40: Compactor | M40: 1
A41: 36 | B41: 15 | C41: yd | D41: Compactor | E41: 1 | F41: 15 | G41: yd | H41: Compactor | I41: 1 | J41: 15 | K41: yd | L41: Compactor | M41: 1
A42: 37 | B42: 15 | C42: yd | D42: Compactor | E42: 1 | F42: 15 | G42: yd | H42: Compactor | I42: 1 | J42: 15 | K42: yd | L42: Compactor | M42: 1
A43: 38 | B43: 15 | C43: yd | D43: Compactor | E43: 1 | F43: 15 | G43: yd | H43: Compactor | I43: 1 | J43: 15 | K43: yd | L43: Compactor | M43: 1
A44: 39 | B44: 15 | C44: yd | D44: Compactor | E44: 1 | F44: 15 | G44: yd | H44: Compactor | I44: 1 | J44: 15 | K44: yd | L44: Compactor | M44: 1
A45: 40 | B45: 15 | C45: yd | D45: Compactor | E45: 1 | F45: 15 | G45: yd | H45: Compactor | I45: 1 | J45: 15 | K45: yd | L45: Compactor | M45: 1
A46: 41 | B46: 15 | C46: yd | D46: Compactor | E46: 1 | F46: 15 | G46: yd | H46: Compactor | I46: 1 | J46: 15 | K46: yd | L46: Compactor | M46: 1
A47: 42 | B47: 15 | C47: yd | D47: Compactor | E47: 1 | F47: 15 | G47: yd | H47: Compactor | I47: 1 | J47: 15 | K47: yd | L47: Compactor | M47: 1
A48: 43 | B48: 15 | C48: yd | D48: Compactor | E48: 1 | F48: 15 | G48: yd | H48: Compactor | I48: 1 | J48: 15 | K48: yd | L48: Compactor | M48: 1
A49: 44 | B49: 15 | C49: yd | D49: Compactor | E49: 1 | F49: 15 | G49: yd | H49: Compactor | I49: 1 | J49: 15 | K49: yd | L49: Compactor | M49: 1
A50: 45 | B50: 15 | C50: yd | D50: Compactor | E50: 1 | F50: 15 | G50: yd | H50: Compactor | I50: 1 | J50: 15 | K50: yd | L50: Compactor | M50: 1
A51: 46 | B51: 15 | C51: yd | D51: Compactor | E51: 1 | F51: 15 | G51: yd | H51: Compactor | I51: 1 | J51: 15 | K51: yd | L51: Compactor | M51: 1
A52: 47 | B52: 15 | C52: yd | D52: Compactor | E52: 1 | F52: 15 | G52: yd | H52: Compactor | I52: 1 | J52: 15 | K52: yd | L52: Compactor | M52: 1
A53: 48 | B53: 15 | C53: yd | D53: Compactor | E53: 1 | F53: 15 | G53: yd | H53: Compactor | I53: 1 | J53: 15 | K53: yd | L53: Compactor | M53: 1
A54: 49 | B54: 20 | C54: yd | D54: Compactor | E54: 1 | F54: 20 | G54: yd | H54: Compactor | I54: 1 | J54: 20 | K54: yd | L54: Compactor | M54: 1
A55: 50 | B55: 20 | C55: yd | D55: Compactor | E55: 1 | F55: 20 | G55: yd | H55: Compactor | I55: 1 | J55: 20 | K55: yd | L55: Compactor | M55: 1
A56: 51 | B56: 20 | C56: yd | D56: Compactor | E56: 1 | F56: 20 | G56: yd | H56: Compactor | I56: 1 | J56: 20 | K56: yd | L56: Compactor | M56: 1
A57: 52 | B57: 20 | C57: yd | D57: Compactor | E57: 1 | F57: 20 | G57: yd | H57: Compactor | I57: 1 | J57: 20 | K57: yd | L57: Compactor | M57: 1
A58: 53 | B58: 20 | C58: yd | D58: Compactor | E58: 1 | F58: 20 | G58: yd | H58: Compactor | I58: 1 | J58: 20 | K58: yd | L58: Compactor | M58: 1
A59: 54 | B59: 20 | C59: yd | D59: Compactor | E59: 1 | F59: 20 | G59: yd | H59: Compactor | I59: 1 | J59: 20 | K59: yd | L59: Compactor | M59: 1
A60: 55 | B60: 20 | C60: yd | D60: Compactor | E60: 1 | F60: 20 | G60: yd | H60: Compactor | I60: 1 | J60: 20 | K60: yd | L60: Compactor | M60: 1
A61: 56 | B61: 20 | C61: yd | D61: Compactor | E61: 1 | F61: 20 | G61: yd | H61: Compactor | I61: 1 | J61: 20 | K61: yd | L61: Compactor | M61: 1
A62: 57 | B62: 20 | C62: yd | D62: Compactor | E62: 1 | F62: 20 | G62: yd | H62: Compactor | I62: 1 | J62: 20 | K62: yd | L62: Compactor | M62: 1
A63: 58 | B63: 20 | C63: yd | D63: Compactor | E63: 1 | F63: 20 | G63: yd | H63: Compactor | I63: 1 | J63: 20 | K63: yd | L63: Compactor | M63: 1
A64: 59 | B64: 20 | C64: yd | D64: Compactor | E64: 1 | F64: 20 | G64: yd | H64: Compactor | I64: 1 | J64: 20 | K64: yd | L64: Compactor | M64: 1
A65: 60 | B65: 20 | C65: yd | D65: Compactor | E65: 1 | F65: 20 | G65: yd | H65: Compactor | I65: 1 | J65: 20 | K65: yd | L65: Compactor | M65: 1
A66: 61 | B66: 20 | C66: yd | D66: Compactor | E66: 1 | F66: 20 | G66: yd | H66: Compactor | I66: 1 | J66: 20 | K66: yd | L66: Compactor | M66: 1
A67: 62 | B67: 20 | C67: yd | D67: Compactor | E67: 1 | F67: 20 | G67: yd | H67: Compactor | I67: 1 | J67: 20 | K67: yd | L67: Compactor | M67: 1
A68: 63 | B68: 25 | C68: yd | D68: Compactor | E68: 1 | F68: 25 | G68: yd | H68: Compactor | I68: 1 | J68: 25 | K68: yd | L68: Compactor | M68: 1
A69: 64 | B69: 25 | C69: yd | D69: Compactor | E69: 1 | F69: 25 | G69: yd | H69: Compactor | I69: 1 | J69: 25 | K69: yd | L69: Compactor | M69: 1
A70: =+A69+1 -> 65 | B70: 25 | C70: yd | D70: Compactor | E70: 1 | F70: 25 | G70: yd | H70: Compactor | I70: 1 | J70: 25 | K70: yd | L70: Compactor | M70: 1
A71: 66 | B71: 25 | C71: yd | D71: Compactor | E71: 1 | F71: 25 | G71: yd | H71: Compactor | I71: 1 | J71: 25 | K71: yd | L71: Compactor | M71: 1
A72: 67 | B72: 25 | C72: yd | D72: Compactor | E72: 1 | F72: 25 | G72: yd | H72: Compactor | I72: 1 | J72: 25 | K72: yd | L72: Compactor | M72: 1
A73: 68 | B73: 25 | C73: yd | D73: Compactor | E73: 1 | F73: 25 | G73: yd | H73: Compactor | I73: 1 | J73: 25 | K73: yd | L73: Compactor | M73: 1
A74: 69 | B74: 25 | C74: yd | D74: Compactor | E74: 1 | F74: 25 | G74: yd | H74: Compactor | I74: 1 | J74: 25 | K74: yd | L74: Compactor | M74: 1
A75: 70 | B75: 25 | C75: yd | D75: Compactor | E75: 1 | F75: 25 | G75: yd | H75: Compactor | I75: 1 | J75: 25 | K75: yd | L75: Compactor | M75: 1
A76: 71 | B76: 25 | C76: yd | D76: Compactor | E76: 1 | F76: 25 | G76: yd | H76: Compactor | I76: 1 | J76: 25 | K76: yd | L76: Compactor | M76: 1
A77: 72 | B77: 25 | C77: yd | D77: Compactor | E77: 1 | F77: 25 | G77: yd | H77: Compactor | I77: 1 | J77: 25 | K77: yd | L77: Compactor | M77: 1
A78: 73 | B78: 25 | C78: yd | D78: Compactor | E78: 1 | F78: 25 | G78: yd | H78: Compactor | I78: 1 | J78: 25 | K78: yd | L78: Compactor | M78: 1
A79: 74 | B79: 25 | C79: yd | D79: Compactor | E79: 1 | F79: 25 | G79: yd | H79: Compactor | I79: 1 | J79: 25 | K79: yd | L79: Compactor | M79: 1
A80: 75 | B80: 25 | C80: yd | D80: Compactor | E80: 1 | F80: 25 | G80: yd | H80: Compactor | I80: 1 | J80: 25 | K80: yd | L80: Compactor | M80: 1
A81: 76 | B81: 25 | C81: yd | D81: Compactor | E81: 1 | F81: 25 | G81: yd | H81: Compactor | I81: 1 | J81: 25 | K81: yd | L81: Compactor | M81: 1
A82: 77 | B82: 30 | C82: yd | D82: Compactor | E82: 1 | F82: 30 | G82: yd | H82: Compactor | I82: 1 | J82: 25 | K82: yd | L82: Compactor | M82: 2
A83: 78 | B83: 30 | C83: yd | D83: Compactor | E83: 1 | F83: 30 | G83: yd | H83: Compactor | I83: 1 | J83: 25 | K83: yd | L83: Compactor | M83: 2
A84: 79 | B84: 30 | C84: yd | D84: Compactor | E84: 1 | F84: 30 | G84: yd | H84: Compactor | I84: 1 | J84: 25 | K84: yd | L84: Compactor | M84: 2
A85: 80 | B85: 30 | C85: yd | D85: Compactor | E85: 1 | F85: 30 | G85: yd | H85: Compactor | I85: 1 | J85: 25 | K85: yd | L85: Compactor | M85: 2
A86: 81 | B86: 30 | C86: yd | D86: Compactor | E86: 1 | F86: 30 | G86: yd | H86: Compactor | I86: 1 | J86: 25 | K86: yd | L86: Compactor | M86: 2
A87: 82 | B87: 30 | C87: yd | D87: Compactor | E87: 1 | F87: 30 | G87: yd | H87: Compactor | I87: 1 | J87: 25 | K87: yd | L87: Compactor | M87: 2
A88: 83 | B88: 30 | C88: yd | D88: Compactor | E88: 1 | F88: 30 | G88: yd | H88: Compactor | I88: 1 | J88: 25 | K88: yd | L88: Compactor | M88: 2
A89: 84 | B89: 30 | C89: yd | D89: Compactor | E89: 1 | F89: 30 | G89: yd | H89: Compactor | I89: 1 | J89: 25 | K89: yd | L89: Compactor | M89: 2
A90: 85 | B90: 30 | C90: yd | D90: Compactor | E90: 1 | F90: 30 | G90: yd | H90: Compactor | I90: 1 | J90: 25 | K90: yd | L90: Compactor | M90: 2
A91: 86 | B91: 30 | C91: yd | D91: Compactor | E91: 1 | F91: 30 | G91: yd | H91: Compactor | I91: 1 | J91: 25 | K91: yd | L91: Compactor | M91: 2
A92: 87 | B92: 30 | C92: yd | D92: Compactor | E92: 1 | F92: 30 | G92: yd | H92: Compactor | I92: 1 | J92: 25 | K92: yd | L92: Compactor | M92: 2
A93: 88 | B93: 30 | C93: yd | D93: Compactor | E93: 1 | F93: 30 | G93: yd | H93: Compactor | I93: 1 | J93: 25 | K93: yd | L93: Compactor | M93: 2
A94: 89 | B94: 30 | C94: yd | D94: Compactor | E94: 1 | F94: 30 | G94: yd | H94: Compactor | I94: 1 | J94: 25 | K94: yd | L94: Compactor | M94: 2
A95: 90 | B95: 30 | C95: yd | D95: Compactor | E95: 1 | F95: 30 | G95: yd | H95: Compactor | I95: 1 | J95: 25 | K95: yd | L95: Compactor | M95: 2
A96: 91 | B96: 30 | C96: yd | D96: Compactor | E96: 1 | F96: 30 | G96: yd | H96: Compactor | I96: 1 | J96: 25 | K96: yd | L96: Compactor | M96: 2
A97: 92 | B97: 30 | C97: yd | D97: Compactor | E97: 1 | F97: 30 | G97: yd | H97: Compactor | I97: 1 | J97: 25 | K97: yd | L97: Compactor | M97: 2
A98: 93 | B98: 30 | C98: yd | D98: Compactor | E98: 1 | F98: 30 | G98: yd | H98: Compactor | I98: 1 | J98: 25 | K98: yd | L98: Compactor | M98: 2
A99: 94 | B99: 30 | C99: yd | D99: Compactor | E99: 1 | F99: 34 | G99: yd | H99: Compactor | I99: 1 | J99: 25 | K99: yd | L99: Compactor | M99: 2
A100: 95 | B100: 30 | C100: yd | D100: Compactor | E100: 2 | F100: 34 | G100: yd | H100: Compactor | I100: 1 | J100: 25 | K100: yd | L100: Compactor | M100: 2
A101: 96 | B101: 30 | C101: yd | D101: Compactor | E101: 2 | F101: 34 | G101: yd | H101: Compactor | I101: 1 | J101: 25 | K101: yd | L101: Compactor | M101: 2
A102: 97 | B102: 30 | C102: yd | D102: Compactor | E102: 2 | F102: 34 | G102: yd | H102: Compactor | I102: 1 | J102: 25 | K102: yd | L102: Compactor | M102: 2
A103: 98 | B103: 30 | C103: yd | D103: Compactor | E103: 2 | F103: 34 | G103: yd | H103: Compactor | I103: 1 | J103: 25 | K103: yd | L103: Compactor | M103: 2
A104: 99 | B104: 30 | C104: yd | D104: Compactor | E104: 2 | F104: 34 | G104: yd | H104: Compactor | I104: 1 | J104: 25 | K104: yd | L104: Compactor | M104: 2
A105: 100 | B105: 30 | C105: yd | D105: Compactor | E105: 2 | F105: 34 | G105: yd | H105: Compactor | I105: 1 | J105: 25 | K105: yd | L105: Compactor | M105: 2
A106: =+A105+1 -> 101 | B106: 30 | C106: yd | D106: Compactor | E106: 1 | F106: 34 | G106: yd | H106: Compactor | I106: 1 | J106: 25 | K106: yd | L106: Compactor | M106: 2
A107: 102 | B107: 30 | C107: yd | D107: Compactor | E107: 1 | F107: 34 | G107: yd | H107: Compactor | I107: 1 | J107: 25 | K107: yd | L107: Compactor | M107: 2
A108: 103 | B108: 30 | C108: yd | D108: Compactor | E108: 1 | F108: 34 | G108: yd | H108: Compactor | I108: 1 | J108: 25 | K108: yd | L108: Compactor | M108: 2
A109: 104 | B109: 30 | C109: yd | D109: Compactor | E109: 1 | F109: 34 | G109: yd | H109: Compactor | I109: 1 | J109: 25 | K109: yd | L109: Compactor | M109: 2
A110: 105 | B110: 30 | C110: yd | D110: Compactor | E110: 1 | F110: 34 | G110: yd | H110: Compactor | I110: 1 | J110: 25 | K110: yd | L110: Compactor | M110: 2
A111: 106 | B111: 30 | C111: yd | D111: Compactor | E111: 1 | F111: 34 | G111: yd | H111: Compactor | I111: 1 | J111: 25 | K111: yd | L111: Compactor | M111: 2
A112: 107 | B112: 30 | C112: yd | D112: Compactor | E112: 1 | F112: 34 | G112: yd | H112: Compactor | I112: 1 | J112: 25 | K112: yd | L112: Compactor | M112: 2
A113: 108 | B113: 30 | C113: yd | D113: Compactor | E113: 1 | F113: 34 | G113: yd | H113: Compactor | I113: 1 | J113: 25 | K113: yd | L113: Compactor | M113: 2
A114: 109 | B114: 30 | C114: yd | D114: Compactor | E114: 1 | F114: 34 | G114: yd | H114: Compactor | I114: 1 | J114: 25 | K114: yd | L114: Compactor | M114: 2
A115: 110 | B115: 30 | C115: yd | D115: Compactor | E115: 1 | F115: 34 | G115: yd | H115: Compactor | I115: 1 | J115: 25 | K115: yd | L115: Compactor | M115: 2
